bitfinex/quotes_ETHUSD_20251017
["timestamp","ask_amount","ask_price","bid_price","bid_amount"]
[1760672481391,27.61316227,3934.9,3934.8,0.00100001]
[1760672481595,37.00695027,3934.9,3934.8,0.00100001]
[1760672482203,37.46865027,3934.9,3934.8,0.00100001]
[1760672482503,37.00695027,3934.9,3934.8,0.00100001]
[1760672482701,39.04029327,3934.9,3934.8,0.00100001]
[1760672483385,44.63509607,3934.9,3934.8,0.00100001]
[1760672483723,49.40403507,3934.9,3934.8,0.00100001]
[1760672483911,48.73709907,3934.9,3934.8,0.00100001]
[1760672484093,49.13588091,3934.9,3934.8,0.00100001]
[1760672484294,42.66588091,3934.9,3934.8,0.00100001]
[1760672484708,43.33281691,3934.9,3934.8,0.00100001]
[1760672484902,43.79451691,3934.9,3934.8,0.00100001]
[1760672485320,43.33281691,3934.9,3934.8,0.00100001]
[1760672485818,49.80559991,3934.9,3934.8,0.00100001]
[1760672486502,40.23627991,3934.9,3934.8,0.00100001]
[1760672486706,50.33281691,3934.9,3934.8,0.00100001]
[1760672489085,45.83713191,3934.9,3934.8,0.00100001]
[1760672489279,44.68114391,3934.9,3934.8,0.00100001]
[1760672489485,45.14284391,3934.9,3934.8,0.00100001]
[1760672489707,50.79451691,3934.9,3934.8,0.00100001]
[1760672490802,50.79351691,3934.9,3934.8,0.00100001]
[1760672491402,50.79351691,3934.9,3934.5,0.002]
[1760672491403,32.54155441,3934.6,3934.5,0.002]
[1760672491721,37.60871067,3934.6,3934.5,0.002]
[1760672491884,38.07041067,3934.6,3934.5,0.002]
[1760672492704,39.79841067,3934.6,3934.5,0.002]
[1760672494331,39.38671067,3934.6,3934.5,0.002]
[1760672495714,9.38671067,3934.6,3934.5,0.002]
[1760672495913,39.38671067,3934.6,3934.5,0.002]
[1760672496431,37.65871067,3934.6,3934.5,0.002]
[1760672496929,39.38671067,3934.6,3934.5,0.002]
[1760672498806,9.38671067,3934.6,3934.5,0.002]
[1760672499008,39.38671067,3934.6,3934.5,0.002]
[1760672499424,44.05019229,3934.6,3934.5,0.002]
[1760672501138,44.51189229,3934.6,3934.5,0.002]
[1760672501506,44.05019229,3934.6,3934.5,0.002]
[1760672501907,9.38671067,3934.6,3934.5,0.002]
[1760672502121,39.38671067,3934.6,3934.5,0.002]
[1760672503412,46.38671067,3934.6,3934.5,0.002]
[1760672505230,41.295,3934.6,3934.5,0.002]
[1760672505432,30.209623,3934.6,3934.5,0.4622]
[1760672505631,9.567,3934.6,3934.5,0.4622]
[1760672505846,11.295,3934.6,3934.5,0.4622]
[1760672506048,9.567,3934.6,3934.5,0.4622]
[1760672506210,9.567,3934.6,3934.5,0.76280057]
[1760672506742,9.567,3934.6,3934.5,0.4622]
[1760672508146,9.567,3934.6,3934.5,0.002]
[1760672508711,15.499238,3934.6,3934.5,0.002]
[1760672508912,10.227238,3934.6,3934.5,0.002]
[1760672509116,12.76879241,3934.6,3934.5,0.002]
[1760672509449,14.81753408,3934.6,3934.5,0.002]
[1760672509655,33.25801008,3934.6,3934.5,0.002]
[1760672510224,11.78889,3934.6,3934.5,0.4622]
[1760672510734,16.05824641,3934.6,3934.5,0.4622]
[1760672510936,16.05824641,3934.6,3934.5,0.002]
[1760672511714,4.295,3934.6,3934.5,0.002]
[1760672511955,4.295,3934.6,3934.5,0.4522]
[1760672512155,4.69374793,3934.6,3934.5,0.4522]
[1760672512852,7.27369293,3934.6,3934.5,0.4522]
[1760672516258,4.69374793,3934.6,3934.5,0.4522]
[1760672518376,2.96574793,3934.6,3934.5,0.4522]
[1760672520547,2.567,3934.6,3934.5,1.0858]
[1760672520742,2.567,3934.6,3934.5,1.4487473]
[1760672521084,2.567,3934.6,3934.5,1.4372473]
[1760672521280,2.567,3934.6,3934.5,1.0743]
[1760672521583,2.567,3934.6,3934.5,0.002]
[1760672522157,16.69291,3934.6,3934.5,0.002]
[1760672522363,15.499294,3934.6,3934.5,0.002]
[1760672523162,26.012311,3934.6,3934.5,0.002]
[1760672523475,15.506593,3934.6,3934.5,0.002]
[1760672523678,15.90534419,3934.6,3934.5,0.002]
[1760672524054,13.78966259,3934.6,3934.5,0.002]
[1760672524254,20.12055559,3934.6,3934.5,0.002]
[1760672524471,19.41205059,3934.6,3934.5,0.002]
[1760672524854,13.29826059,3934.6,3934.5,0.002]
[1760672525062,13.75456059,3934.6,3934.5,0.002]
[1760672525266,23.660085,3934.6,3934.5,0.002]
[1760672526205,10.048463,3934.6,3934.5,0.002]
[1760672526354,23.705683,3934.6,3934.5,0.002]
[1760672526751,23.473915,3934.6,3934.5,0.002]
[1760672527407,23.369085,3934.6,3934.5,0.002]
[1760672527694,23.419085,3934.6,3934.5,0.002]
[1760672528294,40.098463,3934.6,3934.5,0.002]
[1760672530776,39.69971181,3934.6,3934.5,0.002]
[1760672532488,46.16971181,3934.6,3934.5,0.002]
[1760672534000,43.0518354,3934.6,3934.5,0.002]
[1760672534360,44.9500984,3934.6,3934.5,0.002]
[1760672535590,46.5685434,3934.6,3934.5,0.002]
[1760672538097,53.5685434,3934.6,3934.5,0.002]
[1760672544896,54.15736137,3934.6,3934.5,0.002]
[1760672545807,53.70106137,3934.6,3934.5,0.002]
[1760672546101,53.1122434,3934.6,3934.5,0.002]
[1760672546294,53.5537434,3934.6,3934.5,0.002]
[1760672546490,50.3149724,3934.6,3934.5,0.002]
[1760672546684,53.5537434,3934.6,3934.5,0.002]
[1760672547580,53.1122434,3934.6,3934.5,0.002]
[1760672548096,46.8489064,3934.6,3934.5,0.002]
[1760672548299,42.2899544,3934.6,3934.5,0.002]
[1760672548477,41.89112281,3934.6,3934.5,0.002]
[1760672548789,44.75184081,3934.6,3934.5,0.002]
[1760672549907,51.12931781,3934.6,3934.5,0.002]
[1760672550792,22.66341181,3934.6,3934.5,0.002]
[1760672550997,52.66341181,3934.6,3934.5,0.002]
[1760672551189,53.10491181,3934.6,3934.5,0.002]
[1760672551385,53.50375033,3934.6,3934.5,0.002]
[1760672554281,54.64975033,3934.6,3934.5,0.002]
[1760672555509,2.59181282,3934.2,3934.1,0.002]
[1760672555710,2.59181282,3934.2,3930.9,0.18378111]
[1760672555711,0.05,3933.8,3932.0,0.183]
[1760672555910,2.54187743,3934.1,3932.0,0.183]
[1760672555911,20.76125662,3932.1,3932.0,0.183]
[1760672556218,19.20557004,3932.1,3932.0,0.183]
[1760672556415,19.20557004,3932.1,3932.0,0.6505]
[1760672556416,18.12931162,3932.1,3932.0,0.6505]
[1760672556606,15.21062662,3932.1,3932.0,0.6505]
[1760672557000,18.61606262,3932.1,3932.0,0.6505]
[1760672557204,17.50554462,3932.1,3932.0,0.6505]
[1760672557617,17.90454254,3932.1,3932.0,0.6505]
[1760672557919,20.95039154,3932.1,3932.0,0.6505]
[1760672558098,27.95039154,3932.1,3932.0,0.6505]
[1760672558418,24.85569054,3932.1,3932.0,0.6505]
[1760672559010,26.01888454,3932.1,3932.0,0.6505]
[1760672559187,20.24540292,3932.1,3932.0,0.6505]
[1760672559383,7.39899792,3932.1,3932.0,0.6505]
[1760672559586,9.96899792,3932.1,3932.0,1.62132178]
[1760672559999,7.0,3932.1,3932.0,4.16455677]
[1760672560205,9.571,3932.1,3932.0,4.16455677]
[1760672560409,9.571,3932.1,3932.0,0.98772178]
[1760672560628,9.571,3932.1,3932.0,0.6505]
[1760672560792,9.571,3932.1,3932.0,3.82733499]
[1760672562093,9.571,3932.1,3932.0,3.85276733]
[1760672562289,9.571,3932.1,3932.0,3.82733499]
[1760672562722,7.0,3932.1,3932.0,3.82733499]
[1760672563039,7.0,3932.1,3932.0,5.04205624]
[1760672564314,2.571,3932.6,3932.5,3.17651163]
[1760672564519,2.571,3932.6,3932.5,3.64401163]
[1760672568133,2.571,3932.6,3932.5,1.1011]
[1760672568433,3.604826,3932.5,3932.1,0.4675]
[1760672568637,3.604826,3932.5,3932.2,0.90835135]
[1760672569137,3.604826,3932.5,3932.1,0.6336]
[1760672569333,3.604826,3932.5,3932.1,1.1011]
[1760672569534,3.604826,3932.5,3932.0,0.183]
[1760672570034,3.604826,3932.5,3932.0,0.6505]
[1760672570330,3.018506,3932.5,3932.0,0.6505]
[1760672571457,10.433437,3932.4,3931.4,2.54360078]
[1760672571754,7.983375,3932.3,3931.4,0.6336]
[1760672572027,2.57,3932.2,3931.5,2.54355843]
[1760672572327,2.57,3932.2,3931.6,0.65903493]
[1760672572624,2.57,3932.2,3931.8,0.6336]
[1760672572928,2.57,3932.2,3932.0,3.17683499]
[1760672573137,2.57,3932.2,3932.1,1.0067485]
[1760672573502,2.57,3932.2,3932.1,4.18351881]
[1760672573934,2.57,3932.2,3932.1,4.15808711]
[1760672574431,0.2305,3933.7,3932.1,4.15808711]
[1760672574606,0.3989019,3933.5,3932.9,0.6336]
[1760672574800,1.756,3933.4,3932.9,0.95122893]
[1760672575032,6.930616,3933.3,3932.2,1.0725]
[1760672575203,2.637495,3933.2,3932.3,2.54298422]
[1760672575403,2.09105,3933.2,3932.4,3.17654966]
[1760672575628,2.09105,3933.2,3932.5,2.54287196]
[1760672575821,2.496,3933.2,3932.4,3.61546522]
[1760672576016,2.496,3933.2,3932.4,2.30242611]
[1760672576230,1.728,3933.3,3932.7,0.6336]
[1760672576437,4.275661,3933.3,3932.7,0.6336]
[1760672576732,1.756,3933.4,3932.7,2.54277409]
[1760672576941,1.756,3933.4,3932.6,3.17643559]
[1760672577229,7.519106,3933.3,3932.6,3.17643944]
[1760672577428,3.821068,3933.3,3932.7,2.54276622]
[1760672577601,6.022706,3933.3,3932.6,3.7922732]
[1760672577802,3.963145,3933.3,3932.6,3.7922732]
[1760672578107,4.792068,3933.2,3932.6,3.7922732]
[1760672578421,2.947091,3933.2,3932.4,0.6336]
[1760672578626,1.728,3933.3,3932.6,3.17644687]
[1760672578821,0.39889331,3933.1,3932.6,3.17644687]
[1760672579008,2.574,3933.0,3932.6,3.17644687]
[1760672579606,2.574,3933.0,3932.8,0.6336]
[1760672579807,2.574,3933.0,3932.9,1.0871]
[1760672580006,2.574,3933.0,3932.9,0.80567]
[1760672580212,2.574,3933.0,3932.9,1.25917]
[1760672580713,2.574,3933.0,3932.9,3.801823]
[1760672581036,2.574,3933.0,3932.9,1.25917]
[1760672581240,2.574,3933.0,3932.5,0.6336]
[1760672581538,2.574,3933.0,3932.3,0.6336]
[1760672581739,2.574,3933.0,3932.1,0.6688168]
[1760672581740,0.4594,3932.9,3932.1,0.5424168]
[1760672582042,0.4594,3932.9,3932.1,3.17675111]
[1760672582253,2.977811,3932.8,3932.2,2.54308199]
[1760672582437,2.089621,3932.8,3932.2,2.54310564]
[1760672582746,2.089621,3932.8,3932.3,0.6336]
[1760672583047,0.4594,3932.8,3932.3,0.6336]
[1760672583244,0.4594,3932.8,3932.2,2.54307181]
[1760672583245,0.4594,3932.8,3932.4,2.5429648]
[1760672583425,0.4594,3932.8,3932.2,3.17664545]
[1760672583825,0.4594,3932.8,3932.3,0.6336]
[1760672584121,2.574,3933.0,3932.3,0.6336]
[1760672584326,2.499889,3932.9,3932.4,2.54296499]
[1760672584517,2.499889,3932.9,3932.4,0.6336]
[1760672585048,2.499889,3932.9,3932.3,0.6336]
[1760672585409,2.499889,3932.9,3932.0,0.002]
[1760672585410,2.1874,3932.8,3932.0,0.002]
[1760672585610,2.869462,3932.6,3932.0,0.002]
[1760672585812,2.573,3932.5,3932.0,2.54522215]
[1760672586031,2.97195343,3932.5,3932.0,0.4555]
[1760672586226,2.97195343,3932.5,3932.0,2.99872272]
[1760672586442,2.97195343,3932.5,3932.1,0.6336]
[1760672586813,2.97195343,3932.5,3932.1,3.1767446]
[1760672587155,2.97195343,3932.5,3932.1,0.6336]
[1760672587651,2.97195343,3932.5,3932.1,3.17676688]
[1760672588557,2.97195343,3932.5,3932.1,0.6336]
[1760672589051,2.97195343,3932.5,3932.1,3.17676699]
[1760672589251,2.97195343,3932.5,3932.1,1.42945732]
[1760672590318,2.97195343,3932.5,3932.1,1.25115732]
[1760672590716,2.97195343,3932.5,3932.1,3.79432215]
[1760672591849,2.97195343,3932.5,3932.1,1.25115732]
[1760672592165,2.97195343,3932.5,3932.3,2.54302734]
[1760672592521,2.97195343,3932.5,3932.4,8.77480431]
[1760672592736,2.573,3932.5,3932.4,9.22830431]
[1760672594161,2.573,3932.5,3932.4,3.17657629]
[1760672595671,3.0324,3932.5,3932.1,0.002]
[1760672595864,2.573,3932.5,3932.1,0.002]
[1760672596172,0.4594,3932.4,3932.1,0.002]
[1760672597670,2.573,3932.5,3932.3,2.54304096]
[1760672597847,2.573,3932.5,3932.2,3.17670107]
[1760672598052,2.573,3932.5,3932.2,0.6336]
[1760672598253,2.573,3932.5,3932.3,2.54302108]
[1760672599172,2.573,3932.5,3932.3,0.6336]
[1760672599374,3.0324,3932.5,3932.3,0.6336]
[1760672600675,2.573,3932.5,3932.1,0.1803]
[1760672600974,2.573,3932.5,3932.4,3.17657629]
[1760672603575,2.573,3932.5,3932.4,3.60747629]
[1760672605981,2.573,3932.5,3932.4,3.20200605]
[1760672606156,2.573,3932.5,3932.4,3.60747629]
[1760672608882,0.39887223,3933.5,3932.4,1.0645]
[1760672609059,0.39887223,3933.5,3933.4,3.17592979]
[1760672609265,0.001,3934.0,3933.8,0.6336]
[1760672609465,0.001,3934.0,3933.9,3.17560666]
[1760672609772,2.572,3934.0,3933.9,3.17560666]
[1760672610161,3.0201,3934.0,3933.9,0.6336]
[1760672614292,6.483601,3933.9,3933.3,3.17599257]
[1760672614609,0.6703,3933.8,3933.5,2.542212]
[1760672614765,0.6703,3933.8,3933.3,3.17598845]
[1760672614962,2.572,3934.0,3933.5,0.6336]
[1760672615188,3.0201,3934.0,3933.6,0.025422]
[1760672615390,3.0201,3934.0,3933.5,3.17581095]
[1760672615570,0.6703,3933.9,3933.5,0.6336]
[1760672615763,0.6703,3933.9,3933.1,0.1783]
[1760672615764,0.4481,3933.8,3933.4,0.6336]
[1760672616168,0.4481,3933.7,3933.4,0.6336]
[1760672616394,2.569,3933.6,3933.4,0.6336]
[1760672616597,2.569,3933.6,3933.4,3.17590957]
[1760672616797,3.0171,3933.6,3933.3,0.6336]
[1760672617496,3.0171,3933.6,3933.4,3.17592812]
[1760672617682,2.569,3933.6,3933.5,3.17586515]
[1760672624520,2.569,3933.6,3933.5,3.60676515]
[1760672624717,2.569,3933.6,3933.5,4.70049635]
[1760672625528,2.569,3933.6,3933.5,4.26959635]
[1760672627289,2.569,3933.6,3933.5,3.17586515]
[1760672627692,0.4491,3934.0,3933.6,3.17575617]
[1760672627901,3.0151,3933.9,3933.8,2.54207127]
[1760672628088,3.0151,3933.9,3933.8,3.17567127]
[1760672629414,3.0151,3933.9,3933.8,0.6336]
[1760672629789,4.179766,3933.8,3933.5,0.6356]
[1760672630117,0.4481,3933.8,3933.5,0.002]
[1760672631111,0.4481,3933.7,3933.5,0.002]
[1760672631338,30.18937826,3933.6,3933.5,0.002]
[1760672631500,25.07114026,3933.6,3933.5,0.002]
[1760672631705,25.51994026,3933.6,3933.5,0.002]
[1760672631934,28.06214078,3933.6,3933.5,0.002]
[1760672632104,26.30283826,3933.6,3933.5,0.002]
[1760672632305,23.45349726,3933.6,3933.5,0.002]
[1760672632829,25.99569778,3933.6,3933.5,0.002]
[1760672633211,37.21915678,3933.6,3933.5,0.002]
[1760672635249,39.83615678,3933.6,3933.5,0.002]
[1760672635545,17.90800878,3933.6,3933.5,0.002]
[1760672636111,7.24395626,3933.6,3933.5,0.002]
[1760672636343,15.121088,3933.6,3933.5,0.002]
[1760672637212,4.7438,3933.6,3933.5,0.002]
[1760672637544,25.59375252,3933.6,3933.5,0.002]
[1760672638321,34.53882352,3933.6,3933.5,0.002]
[1760672638611,29.78192952,3933.6,3933.5,0.002]
[1760672638810,32.28208578,3933.6,3933.5,0.002]
[1760672639105,19.66506778,3933.6,3933.5,0.002]
[1760672639325,28.07753578,3933.6,3933.5,0.002]
[1760672639519,27.14377678,3933.6,3933.5,0.002]
[1760672639723,12.32066826,3933.6,3933.5,0.002]
[1760672639925,12.843012,3933.6,3933.5,0.002]
[1760672640343,26.352083,3933.6,3933.5,0.002]
[1760672640653,6.631611,3933.6,3933.5,0.002]
[1760672640813,9.199611,3933.6,3933.5,0.002]
[1760672641211,20.748518,3933.6,3933.5,0.002]
[1760672641408,14.90245256,3933.6,3933.5,0.002]
[1760672641633,19.5642239,3933.6,3933.5,0.002]
[1760672641838,14.90245256,3933.6,3933.5,0.002]
[1760672642351,16.11764456,3933.6,3933.5,0.002]
[1760672642644,13.54964456,3933.6,3933.5,0.002]
[1760672642848,18.65984508,3933.6,3933.5,0.002]
[1760672643225,7.72272908,3933.6,3933.5,0.002]
[1760672643408,19.34941908,3933.6,3933.5,0.002]
[1760672644027,24.01119042,3933.6,3933.5,0.002]
[1760672644224,17.09627176,3933.6,3933.5,0.002]
[1760672644453,47.09627176,3933.6,3933.5,0.002]
[1760672645350,32.54245906,3933.2,3933.1,0.002]
[1760672645548,36.88845906,3933.2,3933.1,0.002]
[1760672645924,37.74194623,3933.2,3933.1,0.002]
[1760672648526,38.06338338,3933.2,3933.1,0.002]
[1760672650349,37.74194623,3933.2,3933.1,0.002]
[1760672650651,40.24210249,3933.2,3933.1,0.002]
[1760672655442,40.19210249,3933.2,3933.1,0.002]
[1760672655646,39.78760249,3933.2,3933.1,0.002]
[1760672655820,39.73760249,3933.2,3933.1,0.002]
[1760672656027,39.78760249,3933.2,3933.1,0.002]
[1760672656478,38.05960249,3933.2,3933.1,0.002]
[1760672656823,42.49160249,3933.2,3933.1,0.002]
[1760672657026,12.74316617,3933.2,3933.1,0.6269]
[1760672657249,15.31116617,3933.2,3933.1,0.6269]
[1760672657436,25.54840923,3933.2,3933.1,0.6269]
[1760672657637,25.54840923,3933.2,3933.1,0.1803]
[1760672657857,23.00595017,3933.2,3933.1,0.1803]
[1760672658063,25.54840923,3933.2,3933.1,0.6269]
[1760672658567,34.91873223,3933.2,3933.1,0.002]
[1760672658728,33.63623223,3933.2,3933.1,0.002]
[1760672658922,31.19805023,3933.2,3933.1,0.002]
[1760672659161,33.69820649,3933.2,3933.1,0.002]
[1760672659370,34.15270649,3933.2,3933.1,0.002]
[1760672659660,47.19210249,3933.2,3933.1,0.002]
[1760672660557,46.73760249,3933.2,3933.1,0.002]
[1760672662075,47.17560249,3933.2,3933.1,0.002]
[1760672663442,46.73760249,3933.2,3933.1,0.002]
[1760672663741,47.17560249,3933.2,3933.1,0.002]
[1760672665367,51.8425038,3933.2,3933.1,0.002]
[1760672667581,51.4045038,3933.2,3933.1,0.002]
[1760672667945,14.30356517,3933.2,3933.1,0.6457]
[1760672668145,16.87156517,3933.2,3933.1,0.1803]
[1760672668384,19.41402423,3933.2,3933.1,0.1803]
[1760672668560,19.41402423,3933.2,3933.1,0.002]
[1760672668759,35.49605123,3933.2,3933.1,0.002]
[1760672669750,36.26983923,3933.2,3933.1,0.002]
[1760672670279,38.76999549,3933.2,3933.1,0.002]
[1760672670853,46.73760249,3933.2,3933.1,0.002]
[1760672671583,47.22560249,3933.2,3933.1,0.002]
[1760672671950,48.37160249,3933.2,3933.1,0.002]
[1760672676287,47.93360249,3933.2,3933.1,0.002]
[1760672678055,47.88360249,3933.2,3933.1,0.002]
[1760672678260,47.88360249,3933.2,3933.1,0.1803]
[1760672679174,47.88360249,3933.2,3933.1,0.002]
[1760672680892,17.88360249,3933.2,3933.1,0.002]
[1760672681195,47.88360249,3933.2,3933.1,0.002]
[1760672681998,48.27160249,3933.2,3933.1,0.002]
[1760672682296,47.83360249,3933.2,3933.1,0.002]
[1760672682810,48.27160249,3933.2,3933.1,0.002]
[1760672683400,53.87205735,3933.2,3933.1,0.002]
[1760672684197,53.43405735,3933.2,3933.1,0.002]
[1760672685695,27.51467474,3933.2,3933.1,0.002]
[1760672685925,27.51467474,3933.2,3933.1,0.6457]
[1760672686102,28.03934774,3933.2,3933.1,0.6457]
[1760672687110,44.17690374,3933.2,3933.1,0.002]
[1760672687821,46.67706,3933.2,3933.1,0.002]
[1760672689493,44.447996,3933.2,3933.1,0.002]
[1760672690022,16.67706,3933.2,3933.1,0.002]
[1760672690214,46.67706,3933.2,3933.1,0.002]
[1760672692632,47.13826,3933.2,3933.1,0.002]
[1760672695448,47.18826,3933.2,3933.1,0.002]
[1760672695757,47.87306,3933.2,3933.1,0.002]
[1760672696118,17.87306,3933.2,3933.1,0.002]
[1760672696319,47.87306,3933.2,3933.1,0.002]
[1760672697213,15.52413468,3933.2,3933.1,0.6499]
[1760672697418,16.36413468,3933.2,3933.1,0.6499]
[1760672697726,15.20150468,3933.2,3933.1,0.6499]
[1760672697918,16.92950468,3933.2,3933.1,0.6499]
[1760672698326,20.71049568,3933.2,3933.1,0.6499]
[1760672699230,36.71221668,3933.2,3933.1,0.6499]
[1760672700331,39.50827374,3933.2,3933.1,0.002]
[1760672700534,42.00843,3933.2,3933.1,0.002]
[1760672700736,27.20139074,3933.2,3933.1,0.002]
[1760672701146,23.32913668,3933.2,3933.1,0.002]
[1760672701330,16.38652068,3933.2,3933.1,0.6499]
[1760672701756,12.92440668,3933.2,3933.1,0.6499]
[1760672701922,15.49240668,3933.2,3933.1,0.6499]
[1760672702126,14.97644468,3933.2,3933.1,0.6499]
[1760672702350,17.20844468,3933.2,3933.1,0.6499]
[1760672702547,14.97644468,3933.2,3933.1,0.6499]
[1760672703145,14.97644468,3933.2,3933.1,0.1803]
[1760672703327,11.63544468,3933.2,3933.1,0.6499]
[1760672703667,9.90744468,3933.2,3933.1,0.6499]
[1760672703968,9.90744468,3933.2,3933.1,0.96915525]
[1760672704366,2.90744468,3933.2,3933.1,0.96915525]
[1760672704751,9.79090668,3933.2,3933.1,0.96915525]
[1760672704955,2.90744468,3933.2,3933.1,0.6499]
[1760672706171,0.33944468,3933.2,3933.1,1.2835]
[1760672706393,0.33944468,3933.2,3933.1,3.8260237]
[1760672706678,0.001,3933.2,3933.1,3.8260237]
[1760672706833,0.001,3933.2,3933.1,5.36238076]
[1760672708558,0.001,3933.2,3933.1,2.81985706]
[1760672708758,0.001,3933.2,3933.1,0.6499]
[1760672709658,0.001,3933.2,3933.1,3.85144893]
[1760672709841,2.569,3933.2,3933.1,3.8260237]
[1760672710042,2.569,3933.2,3933.1,3.85144893]
[1760672710240,2.569,3933.2,3933.1,5.11459721]
[1760672711058,2.569,3933.2,3933.1,5.24099721]
[1760672711059,0.001,3933.2,3933.1,5.24099721]
[1760672713190,0.001,3933.2,3933.1,6.96899721]
[1760672713566,0.001,3933.2,3933.1,12.56945207]
[1760672713967,0.001,3933.2,3933.1,10.84145207]
[1760672714168,0.001,3933.2,3933.1,5.24099721]
[1760672714573,0.001,3933.2,3933.1,10.84145207]
[1760672716069,0.001,3933.2,3933.1,2.22887351]
[1760672716271,0.001,3933.2,3933.1,2.7228237]
[1760672716502,0.001,3933.2,3933.1,3.8272237]
[1760672717000,0.001,3933.2,3933.1,3.3564237]
[1760672717558,0.001,3933.2,3933.1,3.85264893]
[1760672717887,0.001,3933.2,3933.1,9.42767856]
[1760672718284,0.001,3933.2,3933.1,10.71382867]
[1760672718799,0.001,3933.2,3933.1,12.44182867]
[1760672720264,0.001,3933.2,3933.1,6.37057381]
[1760672720487,0.001,3933.2,3933.1,12.44182867]
[1760672721361,0.001,3933.2,3933.1,6.84137381]
[1760672723812,0.001,3933.2,3933.1,6.9433058]
[1760672728423,0.001,3933.2,3933.1,6.4725058]
[1760672728794,0.001,3933.2,3933.1,4.5662058]
[1760672728995,0.001,3933.2,3933.1,3.28005569]
[1760672733111,0.001,3933.2,3933.1,4.02135569]
[1760672733329,0.001,3933.2,3933.1,5.77478092]
[1760672733637,0.001,3933.2,3933.1,5.74935569]
[1760672736848,0.001,3933.2,3933.1,5.31275569]
[1760672737007,0.001,3933.2,3933.1,6.79149509]
[1760672738245,0.001,3933.2,3933.1,6.35489509]
[1760672738743,0.001,3933.2,3933.1,6.79149509]
[1760672741423,0.001,3933.2,3933.1,12.38340321]
[1760672742246,0.001,3933.2,3933.1,11.76850321]
[1760672745561,0.001,3933.2,3933.1,10.83741289]
[1760672745765,0.001,3933.2,3933.1,11.45231289]
[1760672747357,0.001,3933.2,3933.1,10.83741289]
[1760672748764,0.001,3933.2,3933.1,11.27401289]
[1760672750874,0.001,3933.2,3933.1,10.83741289]
[1760672752777,0.4758,3933.2,3933.1,10.83741289]
[1760672756366,0.001,3933.2,3933.1,10.83741289]
[1760672757140,0.001,3933.2,3933.1,11.01571289]
[1760672757336,0.001,3933.2,3933.1,10.83741289]
[1760672760362,0.001,3933.2,3933.1,11.47701289]
[1760672761206,0.001,3933.2,3933.1,16.13783069]
[1760672761360,0.001,3933.2,3933.1,11.47701289]
[1760672761731,0.001,3933.2,3933.1,10.83741289]
[1760672763426,0.001,3933.2,3933.1,11.01571289]
[1760672763696,0.001,3933.5,3933.4,4.90392979]
[1760672763995,0.001,3933.5,3933.4,9.59017088]
[1760672764194,0.001,3933.5,3933.4,9.69114759]
[1760672764367,0.001,3933.5,3933.4,14.4538953]
[1760672764991,0.001,3933.5,3933.4,9.7930775]
[1760672765194,0.001,3933.5,3933.4,11.53894052]
[1760672765603,0.4584,3933.5,3933.4,11.53894052]
[1760672765809,0.4584,3933.5,3933.4,9.7930775]
[1760672768705,0.001,3933.5,3933.4,9.7930775]
[1760672769231,0.001,3933.5,3933.4,14.4538953]
[1760672769410,0.001,3933.5,3933.4,14.9151953]
[1760672770708,0.001,3933.5,3933.4,14.4538953]
[1760672770911,0.001,3933.5,3933.4,16.68240904]
[1760672779791,0.001,3933.9,3933.5,2.3616]
[1760672779993,0.001,3933.9,3933.8,9.56448907]
[1760672780223,0.001,3933.9,3933.8,9.69088907]
[1760672780424,0.001,3933.9,3933.8,10.96032803]
[1760672780639,0.001,3933.9,3933.8,11.06225067]
[1760672781527,0.001,3934.4,3934.1,2.3616]
[1760672781729,0.001,3934.4,3934.2,14.37686654]
[1760672782038,0.001,3934.4,3934.2,15.1849252]
[1760672782205,0.001,3934.4,3934.3,4.90334821]
[1760672783245,0.001,3934.4,3934.3,4.92876569]
[1760672785109,0.001,3934.4,3934.3,4.90334821]
[1760672786750,0.4448,3934.4,3934.3,4.90334821]
[1760672786938,0.4448,3934.4,3934.3,8.93056601]
[1760672787438,0.001,3934.4,3934.3,11.19817276]
[1760672787840,0.4448,3934.4,3934.3,11.19817276]
[1760672790459,0.4448,3934.4,3934.3,7.96256601]
[1760672791935,0.4448,3934.4,3934.3,8.40736601]
[1760672792255,0.4448,3934.4,3934.3,7.83616601]
[1760672795964,0.001,3934.4,3934.3,7.83616601]
[1760672796366,0.001,3934.4,3934.3,7.96256601]
[1760672796674,0.001,3934.4,3934.3,11.25308389]
[1760672796973,0.001,3934.4,3934.3,4.39666609]
[1760672797179,0.4448,3934.4,3934.3,9.05748389]
[1760672797366,0.001,3934.4,3934.3,9.05748389]
[1760672798985,0.001,3934.4,3934.3,9.52508389]
[1760672799144,0.001,3934.4,3934.3,9.05748389]
[1760672802867,0.001,3934.4,3934.3,9.50228389]
[1760672805079,0.001,3934.4,3934.3,9.50428389]
[1760672805375,0.001,3934.4,3934.3,10.43337173]
[1760672805552,0.4448,3934.8,3934.7,3.17508982]
[1760672805553,0.44092272,3934.8,3934.7,3.17508982]
[1760672805754,0.001,3934.9,3934.8,0.6336]
[1760672806147,0.001,3934.9,3934.8,3.17502523]
[1760672807697,0.001,3934.9,3934.8,3.20043948]
[1760672807903,0.001,3934.9,3934.8,3.3023468]
[1760672809473,0.001,3934.9,3934.8,5.4979468]
[1760672809683,0.001,3934.9,3934.8,6.96186678]
[1760672814714,0.001,3934.9,3934.8,6.49426678]
[1760672816120,0.001,3934.9,3934.8,6.95286678]
[1760672817601,0.001,3934.9,3934.8,6.49426678]
[1760672822237,0.001,3934.9,3934.8,6.92536678]
[1760672823743,0.001,3935.0,3934.9,4.90296064]
[1760672823952,0.001,3935.0,3934.9,6.77653801]
[1760672824516,0.001,3935.0,3934.9,6.8784269]